bitfinex/quotes_BTCUSD_20240901
["timestamp","ask_amount","ask_price","bid_price","bid_amount"]
[1725195256872,0.29267961,58134.0,58133.0,0.7958788]
[1725195257468,0.29267961,58134.0,58133.0,0.7818788]
[1725195257910,0.29267961,58134.0,58133.0,0.7958788]
[1725195258128,0.29267961,58134.0,58133.0,0.7818788]
[1725195258349,0.29267961,58134.0,58133.0,0.78043883]
[1725195258587,0.29267961,58134.0,58133.0,0.39138904]
[1725195258791,0.29267961,58134.0,58133.0,0.37738904]
[1725195258998,0.29267961,58134.0,58133.0,0.24838183]
[1725195259629,0.29267961,58134.0,58133.0,0.26238183]
[1725195259838,0.29267961,58134.0,58133.0,0.43440083]
[1725195260070,0.29267961,58134.0,58133.0,0.56340804]
[1725195260291,0.29267961,58134.0,58133.0,0.57740804]
[1725195260553,0.29267961,58134.0,58133.0,0.46240083]
[1725195260765,0.29267961,58134.0,58133.0,0.44840083]
[1725195261024,0.29267961,58134.0,58133.0,0.59140804]
[1725195261217,0.29267961,58134.0,58133.0,0.59340804]
[1725195261429,0.26569589,58134.0,58133.0,0.59340804]
[1725195261641,0.26569589,58134.0,58133.0,0.46440083]
[1725195262527,0.26569589,58134.0,58133.0,0.80843883]
[1725195262728,0.26569589,58134.0,58133.0,0.80643883]
[1725195262952,0.26569589,58134.0,58133.0,1.15047683]
[1725195263157,0.26569589,58134.0,58133.0,1.15247683]
[1725195264205,0.26569589,58134.0,58133.0,1.15047683]
[1725195264871,0.29267843,58134.0,58133.0,1.15047683]
[1725195266025,0.29267843,58134.0,58133.0,1.30522811]
[1725195267892,0.29267843,58134.0,58133.0,1.30722811]
[1725195268139,0.29267843,58134.0,58133.0,1.15247683]
[1725195268970,0.29267843,58134.0,58133.0,1.15047683]
[1725195269223,0.29267843,58134.0,58133.0,1.30519536]
[1725195270722,0.29267843,58134.0,58133.0,1.64923336]
[1725195270938,0.02780054,58134.0,58133.0,1.49451483]
[1725195271424,0.000818,58134.0,58133.0,1.49451483]
[1725195272938,0.000818,58134.0,58133.0,1.83855283]
[1725195273536,0.000818,58134.0,58133.0,1.84055283]
[1725195274420,0.000818,58134.0,58133.0,1.79855283]
[1725195274639,0.000818,58134.0,58133.0,1.82455283]
[1725195274863,0.000818,58134.0,58133.0,1.12447683]
[1725195275325,0.000818,58134.0,58133.0,1.13847683]
[1725195276438,0.000818,58134.0,58133.0,1.48251483]
[1725195276645,0.000818,58134.0,58133.0,1.13847683]
[1725195277519,0.000818,58134.0,58133.0,1.48251483]
[1725195278163,0.000818,58134.0,58133.0,1.59030121]
[1725195278342,0.000818,58134.0,58133.0,1.58830121]
[1725195279238,0.000818,58138.0,58137.0,0.720221]
[1725195279427,0.000818,58138.0,58137.0,1.24185507]
[1725195279657,0.000818,58138.0,58137.0,1.4478019]
[1725195280093,0.000818,58138.0,58137.0,1.60442165]
[1725195280315,0.000818,58138.0,58137.0,1.4498019]
[1725195280728,0.000818,58138.0,58137.0,1.4638019]
[1725195280951,0.000818,58138.0,58137.0,1.4778019]
[1725195282033,0.000818,58138.0,58137.0,1.4758019]
[1725195283303,0.000818,58138.0,58137.0,1.1317879]
[1725195283540,0.000818,58138.0,58137.0,1.1337879]
[1725195283759,0.000818,58138.0,58137.0,1.4778019]
[1725195284877,0.000818,58138.0,58137.0,1.4758019]
[1725195287342,0.000818,58138.0,58137.0,1.4778019]
[1725195287567,0.000818,58138.0,58137.0,1.4758019]
[1725195289288,0.000818,58138.0,58137.0,1.58357331]
[1725195289465,0.000818,58138.0,58137.0,1.58557331]
[1725195290951,0.000818,58138.0,58137.0,1.57157331]
[1725195291160,0.000818,58138.0,58137.0,1.55757331]
[1725195291542,0.000818,58138.0,58137.0,1.57157331]
[1725195291748,0.000818,58138.0,58137.0,1.58557331]
[1725195292503,0.000818,58138.0,58137.0,1.58357331]
[1725195293073,0.000818,58138.0,58137.0,1.56957331]
[1725195293292,0.000818,58138.0,58137.0,1.58357331]
[1725195295262,0.000818,58138.0,58137.0,1.58557331]
[1725195297336,0.000818,58138.0,58137.0,1.58357331]
[1725195297553,0.000818,58138.0,58137.0,1.58557331]
[1725195299629,0.000818,58138.0,58137.0,1.59850575]
[1725195299860,0.000818,58138.0,58137.0,1.59650575]
[1725195301255,0.000818,58138.0,58137.0,1.59850575]
[1725195301454,0.000818,58138.0,58137.0,1.94251975]
[1725195301693,0.000818,58138.0,58137.0,1.59650575]
[1725195302459,0.000818,58138.0,58137.0,1.94051975]
[1725195303281,0.000818,58138.0,58137.0,2.04051975]
[1725195303722,0.000818,58138.0,58137.0,2.04251975]
[1725195303875,0.000818,58138.0,58137.0,1.69850575]
[1725195304086,0.000818,58138.0,58137.0,1.68357331]
[1725195304308,0.000818,58138.0,58137.0,1.66957331]
[1725195304520,0.000818,58138.0,58137.0,1.68557331]
[1725195304725,0.000818,58138.0,58137.0,1.69850559]
[1725195305590,0.000818,58138.0,58137.0,1.68450559]
[1725195306226,0.000818,58138.0,58137.0,1.69850559]
[1725195307517,0.000818,58138.0,58137.0,1.71143851]
[1725195313657,0.000818,58138.0,58137.0,1.78040751]
[1725195313790,0.000818,58138.0,58137.0,1.75454231]
[1725195314009,0.000818,58138.0,58137.0,1.78040755]
[1725195316392,0.000818,58138.0,58137.0,1.77840755]
[1725195317405,0.000818,58138.0,58137.0,1.77340755]
[1725195318739,0.000818,58138.0,58137.0,1.77540755]
[1725195319203,0.000818,58138.0,58137.0,1.77540727]
[1725195319398,0.000818,58138.0,58137.0,2.11742127]
[1725195319597,0.000818,58138.0,58137.0,1.77340727]
[1725195319982,0.000818,58138.0,58137.0,2.11742127]
[1725195320379,0.000818,58138.0,58137.0,1.77340727]
[1725195321075,0.000818,58138.0,58137.0,2.11742127]
[1725195321670,0.000818,58138.0,58137.0,2.11942127]
[1725195322033,0.000818,58138.0,58137.0,2.11742127]
[1725195323467,0.000818,58138.0,58137.0,2.11742113]
[1725195323848,0.000818,58138.0,58137.0,2.09155631]
[1725195324076,0.000818,58138.0,58137.0,2.11742135]
[1725195326884,0.000818,58138.0,58137.0,2.11742091]
[1725195327538,0.000818,58138.0,58137.0,2.29182553]
[1725195327951,0.000818,58138.0,58137.0,2.11742091]
[1725195329087,0.000818,58138.0,58137.0,2.11942091]
[1725195329768,0.000818,58138.0,58137.0,1.67150691]
[1725195329998,0.000818,58138.0,58137.0,1.64564231]
[1725195330227,0.000818,58138.0,58137.0,2.01552118]
[1725195330444,0.000818,58138.0,58137.0,1.66950718]
[1725195330660,0.000818,58138.0,58137.0,1.67150718]
[1725195332695,0.087718,58138.0,58137.0,1.58620718]
[1725195332938,0.369722,58138.0,58137.0,0.25215818]
[1725195333160,0.713731,58138.0,58137.0,0.37848149]
[1725195333373,0.713731,58138.0,58137.0,0.1185219]
[1725195333580,0.713731,58138.0,58137.0,0.07542468]
[1725195333785,0.713731,58138.0,58137.0,0.0355529]
[1725195333786,0.8195041,58138.0,58137.0,0.0355529]
[1725195334013,0.713731,58138.0,58137.0,0.0215529]
[1725195334229,0.713731,58138.0,58137.0,0.019]
[1725195334434,0.713731,58138.0,58137.0,0.03554543]
[1725195334637,0.713731,58138.0,58137.0,0.019]
[1725195334838,0.713731,58138.0,58137.0,0.033]
[1725195335069,0.713731,58138.0,58137.0,0.047]
[1725195335281,0.713731,58138.0,58137.0,0.17605861]
[1725195335616,0.713731,58138.0,58137.0,0.20160071]
[1725195335837,0.713731,58138.0,58137.0,0.21560071]
[1725195336012,0.369722,58138.0,58137.0,0.20405528]
[1725195336240,0.39670359,58138.0,58137.0,0.22055353]
[1725195336466,0.02698159,58138.0,58137.0,0.09154543]
[1725195337334,0.19898559,58138.0,58137.0,0.09154543]
[1725195339003,0.02698159,58138.0,58137.0,0.09154543]
[1725195339233,0.02698159,58138.0,58137.0,0.16888897]
[1725195339450,0.12668159,58138.0,58137.0,0.16888897]
[1725195339672,0.12668159,58138.0,58137.0,0.16978877]
[1725195339931,0.12749959,58138.0,58137.0,0.09244523]
[1725195340398,0.12749959,58138.0,58137.0,0.16977378]
[1725195340631,0.12749959,58138.0,58137.0,0.16977125]
[1725195341352,0.100518,58138.0,58137.0,0.16977125]
[1725195342027,0.100518,58138.0,58137.0,0.09244523]
[1725195342249,0.100518,58138.0,58137.0,0.16974975]
[1725195342743,0.100518,58138.0,58137.0,0.16474975]
[1725195343012,0.100518,58138.0,58137.0,0.16974975]
[1725195343746,0.100518,58138.0,58137.0,0.34175675]
[1725195344678,0.12749983,58138.0,58137.0,0.34175675]
[1725195345676,0.12749983,58138.0,58137.0,0.26445223]
[1725195346394,0.12749983,58138.0,58137.0,0.39324908]
[1725195347307,0.12749983,58138.0,58137.0,0.26445223]
[1725195348706,0.12749983,58138.0,58137.0,0.36747624]
[1725195349273,0.12749983,58138.0,58137.0,0.26445223]
[1725195349892,0.05829983,58138.0,58137.0,0.26445223]
[1725195350096,0.02779983,58138.0,58137.0,0.95792003]
[1725195350305,0.02779983,58138.0,58137.0,1.29849423]
[1725195351463,0.000818,58138.0,58137.0,1.45305045]
[1725195352193,0.15543824,58151.0,58148.0,0.005]
[1725195352411,0.15543824,58151.0,58149.0,0.040898]
[1725195352643,0.15543824,58151.0,58149.0,0.05746111]
[1725195353538,0.05055741,58167.0,58149.0,0.05746111]
[1725195354277,0.1,58153.0,58149.0,0.05746111]
[1725195354500,0.171969,58150.0,58149.0,0.03956311]
[1725195355165,0.171969,58150.0,58149.0,0.05356311]
[1725195355386,0.171969,58150.0,58149.0,0.06756311]
[1725195355806,0.171969,58150.0,58149.0,0.03956311]
[1725195356026,0.171969,58150.0,58149.0,0.06756311]
[1725195356027,0.19894689,58150.0,58149.0,0.06756311]
[1725195357373,0.88682289,58150.0,58149.0,0.04456311]
[1725195357791,0.88682289,58150.0,58149.0,0.028]
[1725195359661,0.98682289,58150.0,58149.0,0.028]
[1725195361616,0.959845,58150.0,58149.0,0.028]
[1725195363774,0.960663,58150.0,58149.0,0.028]
[1725195364197,1.938962,58150.0,58149.0,0.028]
[1725195364642,1.943962,58150.0,58149.0,0.028]
[1725195364824,1.97094269,58150.0,58149.0,0.028]
[1725195365027,1.97094269,58150.0,58149.0,0.014]
[1725195365387,1.97094269,58150.0,58149.0,0.028]
[1725195365600,1.97094269,58150.0,58149.0,0.014]
[1725195366287,1.97094269,58150.0,58149.0,0.028]
[1725195366471,1.88091169,58150.0,58149.0,0.028]
[1725195367064,1.88091169,58150.0,58149.0,0.014]
[1725195367490,1.88091169,58150.0,58149.0,0.028]
[1725195369545,1.64499471,58150.0,58149.0,0.028]
[1725195369935,1.81696371,58150.0,58149.0,0.028]
[1725195371347,1.24065302,58150.0,58149.0,0.028]
[1725195372645,0.272787,58150.0,58149.0,0.1144]
[1725195372843,0.272787,58150.0,58149.0,0.1435382]
[1725195373041,0.616725,58150.0,58149.0,0.16009264]
[1725195373241,0.616725,58150.0,58149.0,0.04455444]
[1725195373454,1.01122041,58150.0,58149.0,0.04455444]
[1725195373595,0.687876,58150.0,58149.0,0.04455444]
[1725195373803,0.687876,58150.0,58149.0,0.028]
[1725195374033,0.687876,58150.0,58149.0,0.04455444]
[1725195374209,0.687876,58150.0,58149.0,0.028]
[1725195374426,0.859845,58150.0,58149.0,0.04455444]
[1725195374621,0.88682424,58150.0,58149.0,0.04455444]
[1725195374823,0.88682424,58150.0,58149.0,0.028]
[1725195375831,0.88682424,58150.0,58149.0,0.04455444]
[1725195376035,0.98682424,58150.0,58149.0,0.04455444]
[1725195376837,0.98682424,58150.0,58149.0,0.04545424]
[1725195379565,0.98682424,58150.0,58149.0,0.12282052]
[1725195379786,0.98682424,58150.0,58149.0,0.04545424]
[1725195381468,0.959845,58150.0,58149.0,0.12282052]
[1725195382578,0.959845,58150.0,58149.0,0.04545424]
[1725195383023,0.959845,58150.0,58149.0,0.12282052]
[1725195383805,0.959845,58150.0,58149.0,0.04545424]
[1725195384176,0.959845,58150.0,58149.0,0.14876727]
[1725195384387,0.959845,58150.0,58149.0,0.04545424]
[1725195384786,0.98682405,58150.0,58149.0,0.04545424]
[1725195384991,0.98682405,58150.0,58149.0,0.14877074]
[1725195385639,0.98682405,58150.0,58149.0,0.29007955]
[1725195385816,0.959845,58150.0,58149.0,0.26099485]
[1725195387108,0.959845,58150.0,58149.0,0.13185424]
[1725195387523,0.959845,58150.0,58149.0,0.26099485]
[1725195387949,0.959845,58150.0,58149.0,0.13185424]
[1725195388776,0.98682384,58150.0,58149.0,0.13185424]
[1725195389623,0.98682384,58150.0,58149.0,0.14478918]
[1725195390256,0.98764184,58150.0,58149.0,0.14478918]
[1725195390469,0.98764184,58150.0,58149.0,0.13185424]
[1725195390686,0.64370384,58150.0,58149.0,0.13185424]
[1725195390924,0.616725,58150.0,58149.0,0.13185424]
[1725195392469,0.616725,58150.0,58149.0,0.26102305]
[1725195392693,0.960663,58150.0,58149.0,0.26102305]
[1725195393119,0.960663,58150.0,58149.0,0.17462305]
[1725195393790,0.960663,58150.0,58149.0,0.17462788]
[1725195393999,0.960663,58150.0,58149.0,0.04545424]
[1725195394209,0.9876416,58150.0,58149.0,0.04545424]
[1725195394857,0.9876416,58150.0,58149.0,0.17462788]
[1725195398792,0.9876416,58150.0,58149.0,0.04545424]
[1725195399000,0.9876416,58150.0,58149.0,0.17464637]
[1725195399199,0.9876416,58150.0,58149.0,0.15809193]
[1725195399411,0.9876416,58150.0,58149.0,0.17464637]
[1725195400554,0.9876416,58150.0,58149.0,0.04545424]
[1725195401450,0.960663,58150.0,58149.0,0.04545424]
[1725195404930,0.98764151,58150.0,58149.0,0.04545424]
[1725195410432,0.98764151,58150.0,58149.0,0.12235424]
[1725195411388,0.960663,58150.0,58149.0,0.22255424]
[1725195411592,0.960663,58150.0,58149.0,0.2059998]
[1725195411815,0.960663,58150.0,58149.0,0.22255424]
[1725195412228,0.616725,58150.0,58149.0,0.26031536]
[1725195414039,0.000818,58150.0,58149.0,0.26031536]
[1725195414392,0.000818,58150.0,58149.0,0.28831536]
[1725195414596,0.02779575,58150.0,58149.0,0.46028736]
[1725195415244,0.02779575,58150.0,58149.0,0.80423136]
[1725195415475,0.02779575,58150.0,58149.0,0.46028736]
[1725195416089,0.02779575,58150.0,58149.0,0.80423136]
[1725195416290,0.02779575,58150.0,58149.0,0.46028736]
[1725195417156,0.02779575,58150.0,58149.0,0.44628736]
[1725195417614,0.02779575,58150.0,58149.0,0.79023136]
[1725195418028,0.02779575,58150.0,58149.0,0.77623136]
[1725195418265,0.19976475,58150.0,58149.0,0.23155424]
[1725195418444,0.19976475,58150.0,58149.0,0.12235424]
[1725195418445,0.93819816,58150.0,58149.0,0.12235424]
[1725195418650,0.88764075,58150.0,58149.0,0.25156692]
[1725195418914,0.88764075,58150.0,58149.0,0.23501248]
[1725195419179,0.88764075,58150.0,58149.0,0.25156692]
[1725195421559,0.860663,58150.0,58149.0,0.25156692]
[1725195423356,0.860663,58150.0,58149.0,0.12235424]
[1725195424807,0.88764067,58150.0,58149.0,0.12235424]
[1725195426198,1.23157867,58150.0,58149.0,0.12235424]
[1725195427292,1.2292602,58150.0,58149.0,0.14418966]
[1725195430252,1.2292602,58150.0,58149.0,0.12235424]
[1725195431161,1.3292602,58150.0,58149.0,0.12235424]
[1725195431388,1.30228253,58150.0,58149.0,0.12235424]
[1725195433548,1.30228253,58150.0,58149.0,0.25159327]
[1725195434670,1.32926065,58150.0,58149.0,0.25159327]
[1725195434984,1.32926065,58150.0,58149.0,0.12235424]
[1725195435886,1.32926065,58150.0,58149.0,0.25159085]
[1725195436087,1.32926065,58150.0,58149.0,0.12235424]
[1725195436745,1.32926065,58150.0,58149.0,0.25158923]
[1725195437176,1.32926065,58150.0,58149.0,0.04545424]
[1725195438579,1.46308652,58150.0,58149.0,0.04545424]
[1725195438815,2.58633452,58150.0,58149.0,0.0288998]
[1725195439010,2.58633452,58150.0,58149.0,0.10644642]
[1725195439211,2.58633452,58150.0,58149.0,0.0288998]
[1725195439610,2.18412552,58150.0,58149.0,0.0288998]
[1725195439848,2.13450552,58150.0,58149.0,0.0288998]
[1725195440197,2.00149765,58150.0,58149.0,0.0288998]
[1725195440612,2.00149765,58150.0,58149.0,0.04545951]
[1725195441458,1.97951953,58150.0,58149.0,0.04545951]
[1725195441853,1.97951953,58150.0,58149.0,0.0288998]
[1725195442056,2.14807117,58150.0,58149.0,0.0288998]
[1725195442253,2.14807117,58150.0,58149.0,0.0148998]
[1725195442932,2.14807117,58150.0,58149.0,0.0278998]
[1725195443166,2.14807117,58150.0,58149.0,0.04699273]
[1725195443368,2.14807117,58150.0,58149.0,0.0278998]
[1725195443577,2.49200917,58150.0,58149.0,0.0278998]
[1725195443783,2.54256658,58150.0,58149.0,0.0278998]
[1725195443991,2.54256658,58150.0,58149.0,0.0138998]
[1725195444400,2.54256658,58150.0,58149.0,0.0278998]
[1725195444813,2.56954808,58150.0,58149.0,0.0148998]
[1725195445013,2.56954808,58150.0,58149.0,0.0288998]
[1725195445637,2.56954808,58150.0,58149.0,0.0148998]
[1725195445786,2.56954808,58150.0,58149.0,0.0008998]
[1725195445992,2.56954808,58150.0,58149.0,0.0018998]
[1725195446203,2.51899067,58150.0,58149.0,0.0018998]
[1725195451495,2.49200917,58150.0,58149.0,0.0018998]
[1725195451723,2.32345753,58150.0,58149.0,0.0018998]
[1725195454903,2.35044223,58150.0,58149.0,0.0018998]
[1725195456086,2.40099964,58150.0,58149.0,0.0018998]
[1725195458043,2.00650423,58150.0,58149.0,0.0018998]
[1725195458287,2.00650423,58150.0,58149.0,0.0823998]
[1725195458782,2.00650423,58150.0,58149.0,0.0813998]
[1725195459238,2.00650423,58150.0,58149.0,0.0853998]
[1725195459441,2.00650423,58150.0,58149.0,0.0873998]
[1725195460524,2.31389123,58150.0,58149.0,0.0873998]
[1725195460735,2.31389123,58150.0,58149.0,0.0833998]
[1725195460972,2.31389123,58150.0,58149.0,0.0913998]
[1725195460973,1.96342423,58150.0,58149.0,0.0913998]
[1725195461190,2.01398164,58150.0,58149.0,0.0913998]
[1725195461405,1.98699694,58150.0,58149.0,0.0893998]
[1725195461830,1.98699694,58150.0,58149.0,0.0963998]
[1725195463198,2.0356494,58150.0,58149.0,0.0158998]
[1725195463639,1.98699694,58150.0,58149.0,0.0158998]
[1725195466118,2.01397978,58150.0,58149.0,0.0158998]
[1725195467548,2.52988978,58150.0,58149.0,0.0158998]
[1725195468831,2.27569398,58150.0,58149.0,0.0158998]
[1725195469448,2.39710557,58150.0,58149.0,0.0158998]
[1725195471737,2.44766298,58150.0,58149.0,0.0158998]
[1725195473210,2.42068014,58150.0,58149.0,0.0158998]
[1725195474066,2.31271773,58150.0,58149.0,0.0158998]
[1725195474456,1.29284573,58150.0,58149.0,0.1855998]
[1725195475928,1.39284573,58150.0,58149.0,0.1855998]
[1725195476190,1.41982563,58150.0,58149.0,0.1855998]
[1725195478789,1.76876363,58150.0,58149.0,0.1855998]
[1725195480499,1.76876363,58150.0,58149.0,0.20216282]
[1725195480957,1.76876363,58150.0,58149.0,0.1855998]
[1725195481393,1.76876363,58150.0,58149.0,0.20216282]
[1725195481606,1.74178373,58150.0,58149.0,0.20216282]
[1725195481818,1.74178373,58150.0,58149.0,0.1855998]
[1725195482032,1.74178373,58150.0,58149.0,0.20216282]
[1725195484454,1.39784573,58150.0,58149.0,0.20216282]
[1725195484706,1.39284573,58150.0,58149.0,0.20216282]
[1725195484937,1.41982584,58150.0,58149.0,0.22386917]
[1725195485586,1.41982584,58150.0,58149.0,0.1855998]
[1725195485806,1.41982584,58150.0,58149.0,0.20216282]
[1725195491553,1.39284573,58150.0,58149.0,0.20216282]
[1725195495231,1.45637742,58150.0,58149.0,0.20216282]
[1725195495436,1.45637742,58150.0,58149.0,0.1855998]
[1725195496139,1.4833583,58150.0,58149.0,0.1855998]
[1725195497357,1.4833583,58150.0,58149.0,0.21210007]
[1725195497765,1.4833583,58150.0,58149.0,0.22849487]
[1725195498413,1.4833583,58150.0,58149.0,0.2019946]
[1725195499673,1.1394203,58150.0,58149.0,0.2019946]
[1725195500908,0.81567788,58150.0,58149.0,0.2019946]
[1725195501114,0.81507788,58150.0,58149.0,0.2019946]
[1725195501540,0.788097,58150.0,58149.0,0.2019946]
[1725195501749,1.132035,58150.0,58149.0,0.2019946]
[1725195502583,1.132035,58150.0,58149.0,0.22993276]
[1725195503000,0.84638651,58150.0,58149.0,0.22993276]
[1725195504902,0.87336654,58150.0,58149.0,0.2019946]
[1725195506346,0.87336654,58150.0,58149.0,0.2210847]
[1725195508576,0.87331661,58150.0,58149.0,0.2210847]
[1725195508911,1.21725461,58150.0,58149.0,0.2210847]
[1725195509120,1.21807261,58150.0,58149.0,0.2210847]
[1725195511035,1.93414461,58150.0,58149.0,0.0349899]
[1725195511253,1.93414461,58150.0,58149.0,0.05137628]
[1725195511467,1.90716458,58150.0,58149.0,0.0349899]
[1725195511678,1.86600458,58150.0,58149.0,0.0349899]
[1725195512348,1.86600458,58150.0,58149.0,0.03499219]
[1725195512781,1.74003058,58150.0,58149.0,0.03499223]
[1725195514659,1.76701168,58150.0,58149.0,0.03499223]
[1725195516433,1.76701168,58150.0,58149.0,0.06499223]
[1725195516666,1.70406568,58150.0,58149.0,0.06499223]
[1725195516873,1.68453168,58150.0,58149.0,0.06499223]
[1725195518105,1.56201168,58150.0,58149.0,0.32695829]
[1725195518306,1.53201168,58150.0,58149.0,0.29704923]
[1725195518533,1.53201168,58150.0,58149.0,0.31344465]
[1725195518770,1.53201168,58150.0,58149.0,0.23595659]
[1725195518971,1.53201168,58150.0,58149.0,0.31344592]
[1725195519176,1.53201168,58150.0,58149.0,0.29435349]
[1725195519380,1.53201168,58150.0,58149.0,0.23595496]
[1725195519737,1.53201168,58150.0,58149.0,0.21478602]
[1725195521508,1.50503058,58150.0,58149.0,0.21478602]
[1725195522606,1.50503058,58150.0,58149.0,0.21478584]
[1725195523057,1.50503058,58150.0,58149.0,0.21478586]
[1725195523276,1.16109258,58150.0,58149.0,0.31813709]
[1725195523715,1.16109258,58150.0,58149.0,0.21478586]
[1725195524205,1.16109258,58150.0,58149.0,0.31813709]
[1725195524849,1.188072,58150.0,58149.0,0.31813709]
[1725195525036,1.188072,58150.0,58149.0,0.21478586]
[1725195525514,1.188072,58150.0,58149.0,0.31813709]
[1725195526598,1.188072,58150.0,58149.0,0.21478586]
[1725195529695,1.188072,58150.0,58149.0,0.21478496]
[1725195530333,0.81567342,58150.0,58149.0,0.31812951]
[1725195530744,0.98764242,58150.0,58149.0,0.31812951]
[1725195531503,0.960663,58150.0,58149.0,0.31812951]
[1725195532497,0.960663,58150.0,58149.0,0.21478496]
[1725195534666,0.98764248,58150.0,58149.0,0.19838954]
[1725195535311,0.98764248,58150.0,58149.0,0.30172649]
[1725195535741,0.98764248,58150.0,58149.0,0.31811607]
[1725195536446,0.98764248,58150.0,58149.0,0.21477912]
[1725195536645,0.98764248,58150.0,58149.0,0.31811468]
[1725195536866,0.98764248,58150.0,58149.0,0.3017251]
[1725195537074,0.98764248,58150.0,58149.0,0.31811468]
[1725195537689,0.98764248,58150.0,58149.0,0.21477912]
[1725195538107,0.98764248,58150.0,58149.0,0.19838954]
[1725195538341,0.98764248,58150.0,58149.0,0.21477912]
[1725195538944,0.98764248,58150.0,58149.0,0.318112]
[1725195539146,0.98764248,58150.0,58149.0,0.21477912]
[1725195539557,0.98764248,58150.0,58149.0,0.21477901]
[1725195540153,0.98764248,58150.0,58149.0,0.19568938]
[1725195540371,0.98764248,58150.0,58149.0,0.31811073]
[1725195540484,0.98764248,58150.0,58149.0,0.31811379]
[1725195540685,0.98764248,58150.0,58149.0,0.21477962]
[1725195541505,0.960663,58150.0,58149.0,0.21477962]
[1725195541711,0.960663,58150.0,58149.0,0.31811165]
[1725195542784,0.960663,58150.0,58149.0,0.29902141]
[1725195542970,0.960663,58150.0,58149.0,0.29902173]
[1725195543216,0.960663,58150.0,58149.0,0.21477979]
[1725195543433,0.960663,58150.0,58149.0,0.31811374]
[1725195544237,0.98764267,58150.0,58149.0,0.31811374]
[1725195544490,0.98764267,58150.0,58149.0,0.31811373]
[1725195544630,0.98764267,58150.0,58149.0,0.21477979]
[1725195545055,0.98764267,58150.0,58149.0,0.31811268]
[1725195545857,1.33158067,58150.0,58149.0,0.31811268]
[1725195546061,1.33158067,58150.0,58149.0,0.29902227]
[1725195546257,1.33158067,58150.0,58149.0,0.31811288]
[1725195550203,1.33158067,58150.0,58149.0,0.21477999]
[1725195550639,1.33158067,58150.0,58149.0,0.31811768]
[1725195553182,1.33158067,58150.0,58149.0,0.29902707]
[1725195553395,1.33158067,58150.0,58149.0,0.31811775]
[1725195556867,1.33158067,58150.0,58149.0,0.29902707]
[1725195557076,1.33158067,58150.0,58149.0,0.31811776]
[1725195557730,1.33158067,58150.0,58149.0,0.29229481]
[1725195557938,1.33158067,58150.0,58149.0,0.33185806]
[1725195558152,1.33158067,58150.0,58149.0,0.25434332]
[1725195558385,0.98764267,58150.0,58149.0,0.25434332]
[1725195558564,0.98764267,58150.0,58149.0,0.37384966]
[1725195558811,0.98764267,58150.0,58149.0,0.27051197]
[1725195559018,0.98764267,58150.0,58149.0,0.23094872]
[1725195559490,0.98764267,58150.0,58149.0,0.33428641]
[1725195559693,0.02779767,58150.0,58149.0,0.57302051]
[1725195559907,0.02779767,58150.0,58149.0,0.44385498]
[1725195560603,0.02779767,58150.0,58149.0,0.39566138]
[1725195560837,0.02779767,58150.0,58149.0,0.43091692]
[1725195561041,0.02779767,58150.0,58149.0,0.76786092]
[1725195561226,0.02779767,58150.0,58149.0,1.10380492]
[1725195561455,0.02779767,58150.0,58149.0,1.12373858]
[1725195561662,0.02779767,58150.0,58149.0,1.13173858]
[1725195561877,0.02779767,58150.0,58149.0,1.12473858]
[1725195562091,0.02779767,58150.0,58149.0,1.13873858]
[1725195562721,0.02779767,58150.0,58149.0,1.13073858]
[1725195562942,0.02779767,58150.0,58149.0,1.14473858]
[1725195563469,0.02779767,58150.0,58149.0,1.14973858]
[1725195563704,0.02779767,58150.0,58149.0,1.13573858]
[1725195563945,0.02779767,58150.0,58149.0,1.14973858]
[1725195564426,0.02779767,58150.0,58149.0,0.80579458]
[1725195564928,0.02779767,58150.0,58149.0,0.79179194]
[1725195565153,0.02779767,58150.0,58149.0,0.80579194]
[1725195565386,0.02779767,58150.0,58149.0,1.13573594]
[1725195565857,0.02779767,58150.0,58149.0,1.14973594]
[1725195568439,0.02779767,58150.0,58149.0,1.14673594]
[1725195568854,0.02779767,58150.0,58149.0,1.14763574]
[1725195570287,0.02779767,58150.0,58149.0,1.49157974]
[1725195571187,0.02779767,58150.0,58149.0,1.47249264]
[1725195571414,0.02779767,58150.0,58149.0,1.49157668]
[1725195572239,0.14358318,58163.0,58159.0,0.171942]
[1725195572459,0.14358318,58163.0,58161.0,0.07737156]
[1725195572664,0.14358318,58163.0,58162.0,0.09888597]
[1725195573081,0.14358318,58163.0,58162.0,0.11525649]
[1725195574636,0.14358318,58163.0,58162.0,0.11525647]
[1725195574872,0.14358318,58163.0,58162.0,0.12925647]
[1725195575102,0.14358318,58163.0,58162.0,0.21877052]
[1725195575327,0.14358318,58163.0,58162.0,0.23785632]
[1725195575553,0.1705554,58163.0,58162.0,0.23785632]
[1725195576237,0.1705554,58163.0,58162.0,0.28389532]
[1725195577857,0.1705554,58163.0,58162.0,0.30689532]
[1725195577858,0.02697222,58163.0,58162.0,0.30689532]
[1725195578072,0.02697222,58163.0,58162.0,0.28780952]
[1725195578276,0.02697222,58163.0,58162.0,0.30689539]
[1725195578480,0.19890222,58163.0,58162.0,0.26085639]
[1725195581386,0.19972022,58163.0,58162.0,0.24177052]
[1725195581586,0.19972022,58163.0,58162.0,0.26085655]
[1725195582514,0.88744222,58163.0,58162.0,0.23785655]
[1725195582746,0.88744222,58163.0,58162.0,0.14325655]
[1725195584626,0.88744222,58163.0,58162.0,0.12417052]
[1725195584827,0.88744222,58163.0,58162.0,0.14325699]
[1725195585681,1.23130322,58163.0,58162.0,0.06345699]
[1725195588195,1.23130322,58163.0,58162.0,0.06345714]
[1725195591365,1.23130322,58163.0,58162.0,0.06345699]
[1725195593985,0.88744222,58163.0,58162.0,0.09646404]
[1725195594199,0.88744222,58163.0,58162.0,0.32233542]
[1725195594417,0.88744222,58163.0,58162.0,0.2450217]
[1725195595321,0.88744222,58163.0,58162.0,0.24502106]
[1725195595952,0.88744222,58163.0,58162.0,0.24502088]
[1725195597246,0.02779022,58163.0,58162.0,0.37891699]
[1725195597461,0.02779022,58163.0,58162.0,0.83370256]
[1725195598100,0.02779022,58163.0,58162.0,1.16140503]
[1725195598382,0.000818,58168.0,58167.0,0.616955]
[1725195598617,0.000818,58168.0,58167.0,0.74440098]
[1725195598869,0.000818,58168.0,58167.0,0.42192522]
[1725195599564,0.000818,58168.0,58167.0,0.79376222]
[1725195599795,0.000818,58168.0,58167.0,1.13759682]
[1725195600022,0.000818,58168.0,58167.0,1.16345332]
[1725195600249,0.000378,58168.0,58167.0,1.14945332]
[1725195600730,0.000378,58168.0,58167.0,1.30414243]
[1725195600967,0.000378,58168.0,58167.0,1.14945332]
[1725195601191,0.000378,58168.0,58167.0,1.30414243]
[1725195601420,0.000378,58168.0,58167.0,1.30419941]
[1725195601852,0.000378,58168.0,58167.0,1.31819948]
[1725195602309,0.000378,58168.0,58167.0,1.14945186]